bitfinex/quotes_ETHUSD_20220212
["timestamp","ask_amount","ask_price","bid_price","bid_amount"]
[1644661317271,0.65108245,2927.7,2927.4,0.84075833]
[1644661317471,0.00378826,2927.9,2927.4,0.84075833]
[1644661317472,0.65108245,2927.6,2927.4,0.84075833]
[1644661317670,0.00843895,2927.7,2927.4,0.84075833]
[1644661317870,0.00843895,2927.7,2927.4,1.69487403]
[1644661318071,0.62242098,2927.6,2927.4,1.69487403]
[1644661318674,0.00378826,2927.9,2927.4,1.69487403]
[1644661318923,0.00843905,2927.6,2927.4,1.52427403]
[1644661319724,3.02932233,2928.2,2927.4,1.52427403]
[1644661319924,0.001,2928.1,2927.8,0.01934686]
[1644661320123,0.6234759,2928.1,2927.8,0.01934686]
[1644661321124,0.6224759,2928.1,2927.8,0.01934686]
[1644661321324,0.63091455,2928.1,2927.8,0.01934686]
[1644661321524,0.6224759,2928.0,2927.8,0.01934686]
[1644661321923,0.6224759,2928.0,2927.8,0.87334706]
[1644661322326,0.6224759,2927.9,2927.8,0.87334706]
[1644661323568,0.00478826,2928.2,2927.8,0.87334706]
[1644661323569,0.6224759,2928.1,2927.8,0.87334706]
[1644661323763,0.63091462,2928.0,2927.8,0.87334706]
[1644661323965,0.6224759,2927.9,2927.8,0.87334706]
[1644661324766,0.6224759,2927.9,2927.8,0.01934686]
[1644661324967,0.00843872,2928.0,2927.8,0.01934686]
[1644661325665,0.00843872,2928.0,2927.9,0.80302778]
[1644661325866,0.00478826,2928.2,2927.9,0.80302778]
[1644661326072,0.00843867,2928.0,2927.9,0.80302778]
[1644661326323,0.63147641,2928.0,2927.9,0.80302778]
[1644661327014,0.62303774,2928.0,2927.9,0.80302778]
[1644661327211,0.00843863,2928.1,2927.9,0.80302778]
[1644661327413,0.62303774,2928.0,2927.9,0.80302778]
[1644661328015,0.62303774,2928.0,2927.8,0.01934686]
[1644661328414,0.62303774,2927.9,2927.8,0.01934686]
[1644661328819,0.62303774,2928.0,2927.8,0.01934686]
[1644661329022,0.62303774,2927.9,2927.8,0.66699538]
[1644661329420,0.62303774,2928.0,2927.8,0.66699538]
[1644661329622,0.62303774,2927.9,2927.8,0.66699538]
[1644661331268,0.62303774,2927.9,2927.8,0.01934686]
[1644661332465,0.62303774,2927.9,2927.8,0.84440228]
[1644661332866,0.62303774,2927.9,2927.8,0.01934686]
[1644661336426,0.62303774,2927.9,2927.6,0.18922937]
[1644661336623,0.62303774,2927.8,2927.7,0.85444488]
[1644661337224,0.62303774,2927.8,2927.7,1.68058768]
[1644661345369,0.62303774,2927.8,2927.7,2.17158768]
[1644661346370,0.00478826,2928.2,2927.9,0.17078]
[1644661346574,0.68113841,2928.3,2928.0,3.741]
[1644661346575,0.00379006,2928.3,2928.0,3.741]
[1644661346780,0.64738816,2928.9,2928.1,7.73425595]
[1644661346970,0.64738816,2928.9,2928.2,0.6616]
[1644661347170,0.64738816,2929.0,2928.3,4.18491495]
[1644661347370,0.85927237,2929.2,2928.4,1.18683227]
[1644661347371,0.64738816,2928.9,2928.4,1.18683227]
[1644661347571,0.64738816,2928.9,2928.5,3.64101483]
[1644661347869,0.64738816,2928.9,2928.6,0.491]
[1644661348070,0.64738816,2928.9,2928.7,0.17076]
[1644661348269,0.64738816,2928.9,2928.7,4.88200019]
[1644661348469,0.64738816,2928.9,2928.7,1.5155036]
[1644661348925,0.64738816,2929.1,2928.7,1.5155036]
[1644661349526,0.64738816,2929.0,2928.7,1.5155036]
[1644661350526,0.64738816,2929.0,2928.7,1.8155036]
[1644661350726,0.64738816,2929.0,2928.7,1.5155036]
[1644661350925,0.30879997,2929.5,2928.7,1.5155036]
[1644661350926,0.64738816,2929.1,2928.8,3.30428348]
[1644661351126,0.64738816,2929.1,2928.9,0.63412153]
[1644661351427,0.85927237,2929.4,2928.9,0.63412153]
[1644661351428,0.00843776,2929.0,2928.9,0.63412153]
[1644661351629,0.00843776,2929.0,2928.9,4.09477342]
[1644661351827,0.00843776,2929.0,2928.9,4.58577342]
[1644661352226,0.64738816,2929.4,2928.9,4.58577342]
[1644661352427,0.00560098,2929.1,2928.9,4.58577342]
[1644661352671,0.00560098,2929.1,2928.9,1.12512153]
[1644661352871,0.00560098,2929.1,2928.9,1.12318353]
[1644661353271,0.00560098,2929.1,2929.0,3.34075562]
[1644661353469,0.6697887,2929.5,2929.0,3.80861508]
[1644661353470,0.64738816,2929.5,2929.0,3.80861508]
[1644661353670,0.64738816,2929.5,2929.1,1.0243375]
[1644661354274,0.64738816,2929.5,2929.4,0.70332265]
[1644661354475,0.02240054,2929.6,2929.1,1.0243375]
[1644661354476,0.6697887,2929.6,2929.1,1.0243375]
[1644661354684,0.6697887,2929.6,2928.6,0.1706]
[1644661354685,0.64790974,2929.2,2928.6,0.1706]
[1644661354877,0.1706,2929.1,2928.6,0.1706]
[1644661355275,0.03513658,2929.0,2928.6,0.1706]
[1644661355475,0.03513658,2929.0,2928.8,0.69726379]
[1644661355974,0.04408708,2929.0,2928.8,0.69726379]
[1644661356178,0.04408708,2929.0,2928.6,0.1706]
[1644661356419,0.04408708,2929.0,2928.4,0.1132199]
[1644661356619,0.04408708,2929.0,2928.3,0.34153]
[1644661356823,0.69199682,2929.0,2928.3,0.34153]
[1644661357019,0.68304632,2929.0,2928.3,0.34153]
[1644661357419,0.00895079,2928.8,2928.5,0.62926753]
[1644661357619,0.00895079,2928.8,2928.5,0.80002753]
[1644661358219,0.03513658,2929.0,2928.5,0.62926753]
[1644661358422,0.00895079,2928.8,2928.5,0.62926753]
[1644661359424,0.03513658,2929.0,2928.5,0.62926753]
[1644661359626,0.00895079,2928.8,2928.5,0.62926753]
[1644661360071,0.00895079,2928.8,2928.3,0.34153]
[1644661360671,0.68304632,2929.0,2928.3,0.34153]
[1644661360971,0.0089509,2928.7,2928.3,0.34153]
[1644661361171,0.0089509,2928.7,2928.4,0.77017554]
[1644661361872,0.00379669,2928.9,2928.4,0.77017554]
[1644661362072,0.0089509,2928.7,2928.4,0.77017554]
[1644661362674,0.0089509,2928.7,2928.4,0.94093554]
[1644661363075,0.00479669,2928.9,2928.4,0.94093554]
[1644661363273,0.0089509,2928.7,2928.4,0.94093554]
[1644661364423,0.0089509,2928.7,2928.4,0.77017554]
[1644661365126,0.0089509,2928.7,2928.4,0.94093554]
[1644661365523,0.00379669,2928.9,2928.4,0.94093554]
[1644661365723,0.0089509,2928.7,2928.4,0.94093554]
[1644661366121,0.0089509,2928.7,2928.4,0.77017554]
[1644661366525,0.56848671,2928.6,2928.4,0.77017554]
[1644661366925,0.56848671,2928.5,2928.4,0.77017554]
[1644661367123,0.56848671,2928.6,2928.4,0.77017554]
[1644661367965,0.56848671,2928.5,2928.4,0.77017554]
[1644661368769,0.56848671,2928.5,2928.4,1.64388386]
[1644661369973,0.56848671,2928.5,2928.4,0.77017554]
[1644661370377,0.5722834,2928.9,2928.4,0.77017554]
[1644661370573,0.00895102,2928.6,2928.4,0.77017554]
[1644661370773,0.56848671,2928.5,2928.4,0.77017554]
[1644661370973,0.56848671,2928.5,2928.4,1.64400644]
[1644661372621,0.00379669,2928.9,2928.4,1.64400644]
[1644661372820,0.00379669,2928.9,2928.5,0.8738309]
[1644661373027,0.00895102,2928.6,2928.5,0.8738309]
[1644661373422,0.57784016,2928.6,2928.5,5.26153719]
[1644661373824,0.56888914,2928.6,2928.5,5.26153719]
[1644661374026,0.0089509,2928.7,2928.5,5.26153719]
[1644661374326,0.56888914,2928.6,2928.5,1.0244957]
[1644661374526,0.56888914,2928.6,2928.5,5.59076168]
[1644661375069,0.56888914,2928.6,2928.5,6.89076168]
[1644661375273,0.001,2929.2,2928.6,3.25]
[1644661375274,0.0089509,2928.7,2928.6,3.25]
[1644661375470,0.0089509,2928.7,2928.6,8.38809194]
[1644661375675,0.0089509,2928.7,2928.6,8.68809194]
[1644661375869,0.0089509,2928.7,2928.6,9.68809194]
[1644661376069,0.03579772,2929.2,2928.7,1.85]
[1644661376270,0.55492093,2929.1,2928.8,5.08005461]
[1644661376470,0.001,2929.5,2929.0,0.17073]
[1644661376670,0.00379669,2929.1,2928.9,0.56938999]
[1644661376873,0.64790974,2929.4,2928.9,1.06038999]
[1644661377072,0.55588985,2929.4,2928.9,1.36038999]
[1644661377272,0.55488985,2929.3,2928.9,1.36038999]
[1644661377675,0.55488985,2929.2,2928.9,1.36038999]
[1644661377874,0.55488985,2929.2,2928.9,2.21398569]
[1644661378076,0.55488985,2929.1,2928.9,2.21398569]
[1644661378280,0.55488985,2929.0,2928.9,2.21398569]
[1644661378474,0.55488985,2929.0,2928.9,2.27737478]
[1644661378816,0.55488985,2929.0,2928.9,2.61882478]
[1644661379022,0.55488985,2929.0,2928.9,2.31882478]
[1644661379222,0.55488985,2929.0,2928.9,1.40183999]
[1644661379822,0.55488985,2929.0,2928.9,2.32414521]
[1644661380023,0.50488985,2929.0,2928.9,2.32414521]
[1644661380221,0.50488985,2929.0,2928.9,5.64892163]
[1644661380422,0.50488985,2929.0,2928.9,2.32414521]
[1644661381223,0.50488985,2929.0,2928.9,5.65071421]
[1644661381823,0.50488985,2929.0,2928.9,2.32414521]
[1644661383568,0.50488985,2929.0,2928.9,5.72387586]
[1644661385877,0.00479669,2929.6,2928.9,5.72387586]
[1644661386071,0.04070792,2929.6,2929.5,0.75563475]
[1644661386328,0.03691123,2929.6,2929.5,0.75563475]
[1644661386522,0.03591123,2929.6,2929.5,0.75563475]
[1644661387124,0.64790974,2929.7,2929.5,0.75563475]
[1644661387324,0.65688833,2929.7,2929.5,0.75563475]
[1644661387825,0.65688833,2929.7,2929.3,0.42072]
[1644661388224,0.64790974,2929.7,2929.3,0.42072]
[1644661388429,0.65688839,2929.6,2929.3,0.42072]
[1644661388624,0.01277534,2929.6,2929.3,0.42072]
[1644661388826,0.65688839,2929.6,2929.4,0.79542858]
[1644661389026,0.66068508,2929.6,2929.4,0.79542858]
[1644661389225,0.65688839,2929.6,2929.4,0.79542858]
[1644661389425,0.64790974,2929.6,2929.4,0.79542858]
[1644661389626,0.65688839,2929.6,2929.4,0.79542858]
[1644661390066,0.65688839,2929.6,2929.5,0.02036438]
[1644661390667,0.64790974,2929.6,2929.5,0.02036438]
[1644661392469,0.00997859,2929.7,2929.5,0.02036438]
[1644661392673,0.00897859,2929.7,2929.5,0.02036438]
[1644661392974,0.86306906,2929.8,2929.5,0.02036438]
[1644661393372,0.00897853,2929.7,2929.5,0.02036438]
[1644661394220,0.86306906,2929.8,2929.5,0.02036438]
[1644661394419,0.00897853,2929.7,2929.5,0.02036438]
[1644661394821,0.64881714,2929.6,2929.5,0.02036438]
[1644661395023,0.00997853,2929.7,2929.5,0.02036438]
[1644661395220,0.00897853,2929.7,2929.5,0.02036438]
[1644661395519,0.87656838,2929.8,2929.3,0.44112257]
[1644661395720,0.00897853,2929.7,2929.3,0.27040257]
[1644661395923,0.00997853,2929.7,2929.3,0.27040257]
[1644661396122,0.65879567,2929.7,2929.3,0.27040257]
[1644661396721,0.64981714,2929.7,2929.3,0.02040257]
[1644661396922,0.00897865,2929.6,2929.3,0.02040257]
[1644661397123,0.01277534,2929.6,2929.3,0.02040257]
[1644661397865,0.00379669,2929.8,2929.3,0.02040257]
[1644661398067,0.00379669,2929.8,2929.4,0.853492]
[1644661398068,0.00897871,2929.6,2929.4,0.853492]
[1644661398974,0.00379669,2929.8,2929.4,0.853492]
[1644661399169,0.00379669,2929.8,2929.6,0.79606661]
[1644661399370,0.1706,2929.9,2929.6,0.79606661]
[1644661399971,0.1706,2929.9,2929.6,0.81639201]
[1644661399972,0.1716,2929.9,2929.6,0.81639201]
[1644661400570,0.18057836,2929.9,2929.6,0.81639201]
[1644661400970,0.13057836,2929.9,2929.6,0.81639201]
[1644661401420,0.1216,2929.9,2929.6,0.81639201]
[1644661401821,0.13057836,2929.9,2929.6,0.81639201]
[1644661402217,0.12957836,2929.9,2929.6,0.81639201]
[1644661402621,0.1206,2929.9,2929.6,0.81639201]
[1644661402821,0.00897836,2929.9,2929.6,0.81639201]
[1644661403119,0.6577955,2929.9,2929.6,0.81639201]
[1644661403420,0.6577955,2929.9,2929.6,0.0203254]
[1644661403923,0.64881714,2929.9,2929.6,0.0203254]
[1644661404131,0.6577955,2929.9,2929.6,0.0203254]
[1644661405170,0.64881714,2929.9,2929.6,0.0203254]
[1644661405369,0.6577955,2929.9,2929.3,0.491]
[1644661405668,0.00379669,2929.8,2929.4,0.88586283]
[1644661406069,0.50630751,2929.8,2929.4,0.88586283]
[1644661406269,0.50151082,2929.7,2929.4,0.88586283]
[1644661406469,0.50710011,2929.7,2929.4,0.88586283]
[1644661406677,0.50151082,2929.6,2929.3,0.491]
[1644661406871,0.50530751,2929.6,2929.2,0.36174383]
[1644661407070,0.50530751,2929.6,2929.3,0.94187267]
[1644661407671,0.50151082,2929.5,2929.3,0.94187267]
[1644661408079,0.50151082,2929.5,2929.4,0.74328204]
[1644661408270,0.50151082,2929.5,2929.4,1.68515471]
[1644661409034,0.50151082,2929.5,2929.4,1.63515471]
[1644661413271,0.50151082,2929.5,2929.4,0.69328204]
[1644661413672,0.50151082,2929.5,2929.4,1.63562424]
[1644661414977,0.001,2929.8,2929.4,1.63562424]
[1644661414978,0.00558929,2929.6,2929.4,1.63562424]
[1644661415189,0.50151082,2929.5,2929.4,0.69328204]
[1644661415379,0.50151082,2929.5,2929.4,1.63578523]
[1644661416816,0.50151082,2929.5,2929.4,1.64898587]
[1644661417017,0.50151082,2929.5,2929.4,0.69328204]
[1644661417324,0.50151082,2929.5,2929.4,1.64898423]
[1644661417517,0.50151082,2929.5,2929.4,0.69328204]
[1644661417718,0.50151082,2929.5,2929.4,1.64898224]
[1644661417918,0.50151082,2929.5,2929.4,0.69328204]
[1644661418117,0.50151082,2929.5,2929.4,1.64925827]
[1644661418321,0.50151082,2929.5,2929.4,0.69328204]
[1644661418518,0.50151082,2929.5,2929.4,1.64925199]
[1644661418718,0.50151082,2929.5,2929.4,1.64925358]
[1644661418923,0.50151082,2929.5,2929.4,0.69328204]
[1644661419127,0.50151082,2929.5,2929.4,1.6492589]
[1644661419324,0.50151082,2929.5,2929.4,1.64926095]
[1644661419525,0.50151082,2929.5,2929.4,0.69328204]
[1644661419932,0.50151082,2929.5,2929.4,1.64964377]
[1644661420369,0.50151082,2929.5,2929.4,1.64965829]
[1644661420569,0.50151082,2929.5,2929.4,1.64966293]
[1644661420870,0.50151082,2929.5,2929.4,1.64964793]
[1644661421273,0.50151082,2929.5,2929.4,5.21230074]
[1644661421476,0.00897775,2929.6,2929.5,1.75]
[1644661421669,0.00897775,2929.6,2929.5,5.50692011]
[1644661421870,0.00379669,2930.0,2929.5,5.99792011]
[1644661422070,0.00897763,2929.7,2929.5,5.6211963]
[1644661422272,0.00897763,2929.7,2929.5,5.68713144]
[1644661422476,0.00897763,2929.7,2929.6,3.37035981]
[1644661422669,0.00897763,2929.7,2929.6,3.86135981]
[1644661423074,0.00380516,2930.1,2929.6,3.86135981]
[1644661423275,0.00897751,2929.8,2929.6,3.86135981]
[1644661423572,0.00897751,2929.8,2929.6,0.491]
[1644661424228,0.00380516,2930.1,2929.6,0.491]
[1644661424426,0.00897746,2929.8,2929.6,0.491]
[1644661425426,0.00380516,2930.1,2929.6,0.491]
[1644661425629,0.00380516,2930.1,2930.0,0.65034969]
[1644661425828,0.64881714,2930.2,2930.0,0.10340393]
[1644661426027,0.00380516,2930.2,2930.0,0.10340393]
[1644661426229,0.68472158,2930.3,2930.0,0.10340393]
[1644661426427,0.00380516,2930.2,2930.0,0.10340393]
[1644661426627,0.64881714,2930.3,2930.0,0.10340393]
[1644661426828,0.00380516,2930.2,2930.0,0.10340393]
[1644661427030,0.65779408,2930.3,2930.0,0.10340393]
[1644661427228,0.00380516,2930.2,2930.0,0.10340393]
[1644661427430,0.66159924,2930.3,2930.0,0.18874393]
[1644661427681,0.0127821,2930.3,2930.0,0.18874393]
[1644661427871,0.00380516,2930.3,2930.0,0.18874393]
[1644661428071,0.00380516,2930.5,2930.0,0.18874393]
[1644661428272,0.00897694,2930.3,2930.0,0.18874393]
[1644661429176,0.6526223,2930.5,2930.0,0.18874393]
[1644661429376,0.00897694,2930.3,2930.0,0.18874393]
[1644661429577,0.0127821,2930.3,2930.0,0.18874393]
[1644661429776,0.66159924,2930.3,2930.0,0.18874393]
[1644661429975,0.65779408,2930.3,2930.0,0.18874393]
[1644661430182,0.05253273,2930.2,2930.0,0.18874393]
[1644661430376,0.05633789,2930.2,2930.0,0.18874393]
[1644661430575,0.05253273,2930.2,2930.0,0.18874393]
[1644661431732,0.06150972,2930.2,2930.0,0.18874393]
[1644661432633,0.05253273,2930.2,2930.0,0.18874393]
[1644661432840,0.06150972,2930.2,2930.0,0.18874393]
[1644661433835,0.05253273,2930.2,2930.0,0.18874393]
[1644661434241,0.06150972,2930.2,2930.0,0.18874393]
[1644661435068,0.05253273,2930.2,2930.0,0.18874393]
[1644661435272,0.06150972,2930.2,2930.0,0.18874393]
[1644661435576,0.00897699,2930.2,2930.0,0.18874393]
[1644661436371,0.6526223,2930.5,2930.0,0.18874393]
[1644661436573,0.00897699,2930.2,2930.0,0.18874393]
[1644661438823,0.00380516,2930.5,2930.0,0.18874393]
[1644661439024,0.00897699,2930.2,2930.0,0.18874393]
[1644661439824,0.05253273,2930.2,2930.0,0.18874393]
[1644661440224,0.06150972,2930.2,2930.0,0.18874393]
[1644661440627,0.06150972,2930.2,2930.0,3.57056285]
[1644661440833,0.06150972,2930.2,2930.0,0.18874393]
[1644661441126,0.05253273,2930.2,2930.0,0.18874393]
[1644661441324,0.06150972,2930.2,2930.0,0.18874393]
[1644661441525,0.06150972,2930.2,2930.1,0.96792919]
[1644661441925,0.53846455,2930.2,2930.1,0.96792919]
[1644661442125,0.53846455,2930.2,2930.1,0.91792919]
[1644661442330,0.52948756,2930.2,2930.1,0.91792919]
[1644661445279,0.47695483,2930.2,2930.1,0.91792919]
[1644661445678,0.47695483,2930.2,2930.1,4.49951702]
[1644661446080,0.00897694,2930.3,2930.1,4.49951702]
[1644661446318,0.00897694,2930.3,2930.0,0.18874393]
[1644661446519,0.00897694,2930.3,2930.1,5.169]
[1644661447227,0.6536223,2930.6,2930.1,5.169]
[1644661447426,0.00897688,2930.3,2930.1,5.169]
[1644661448226,0.6536223,2930.6,2930.1,5.169]
[1644661448431,0.00480516,2930.6,2930.1,5.169]
[1644661448629,0.00897688,2930.3,2930.1,5.169]
[1644661449427,0.6536223,2930.6,2930.1,5.169]
[1644661449830,0.00897688,2930.3,2930.1,5.169]
[1644661450073,0.05253273,2930.2,2930.1,5.169]
[1644661450676,0.05253273,2930.2,2930.1,8.54856621]
[1644661450880,0.6536223,2930.6,2930.1,8.54856621]
[1644661451085,0.00897694,2930.3,2930.1,8.54856621]
[1644661451276,0.00897694,2930.3,2930.1,5.169]
[1644661451477,0.00897694,2930.3,2930.1,8.57061691]
[1644661451877,0.6536223,2930.6,2930.1,8.57061691]
[1644661452079,0.00897688,2930.3,2930.1,5.169]
[1644661452682,0.00897688,2930.3,2930.2,3.54987046]
[1644661452987,0.00897688,2930.3,2930.2,4.04087046]
[1644661453181,0.00380516,2930.7,2930.2,4.04087046]
[1644661453380,0.00897682,2930.4,2930.2,4.04087046]
[1644661454024,0.00897682,2930.4,2930.2,3.90952226]
[1644661454223,0.68471904,2930.8,2930.2,3.90952226]
[1644661454224,0.64881714,2930.8,2930.2,3.90952226]
[1644661454428,0.00380516,2930.7,2930.2,3.90952226]
[1644661454626,0.00897676,2930.4,2930.3,1.0238793]
[1644661454824,0.00897676,2930.4,2930.3,1.5148793]
[1644661455425,0.00380516,2930.7,2930.3,1.5148793]
[1644661455625,0.00380516,2930.7,2930.5,0.84454888]
[1644661455825,0.64881714,2930.8,2930.5,0.92986888]
[1644661456026,0.00380516,2930.7,2930.5,0.92986888]
[1644661456231,0.64881714,2930.8,2930.5,0.92986888]
[1644661456427,0.00380516,2930.7,2930.5,0.92986888]
[1644661456626,0.64881714,2930.8,2930.5,0.92986888]
[1644661456825,0.00380516,2930.7,2930.5,0.92986888]
[1644661457025,0.00897642,2930.7,2930.5,0.92986888]
[1644661457226,0.01278158,2930.7,2930.5,0.92986888]
[1644661457971,0.00380516,2930.7,2930.5,0.92986888]
[1644661458171,0.00897642,2930.7,2930.5,0.92986888]
[1644661459176,0.00380516,2930.8,2930.5,0.92986888]
[1644661459374,0.00897642,2930.7,2930.5,0.92986888]
[1644661460175,0.00897642,2930.7,2930.6,0.02098281]
[1644661460377,0.64881714,2931.0,2930.6,0.02098281]
[1644661460577,0.00897642,2930.7,2930.6,0.97363636]
[1644661460978,0.00897642,2930.7,2930.6,1.46463636]
[1644661461433,0.00380516,2930.9,2930.6,5.1592881]
[1644661461625,0.6526223,2930.9,2930.6,5.1592881]
[1644661461826,0.00897636,2930.8,2930.6,1.76463636]
[1644661462024,0.00897636,2930.8,2930.6,1.46463636]
[1644661462025,0.01278152,2930.8,2930.6,1.46463636]
[1644661462226,0.43547614,2930.7,2930.6,1.46463636]
[1644661462826,0.43547614,2930.7,2930.6,0.51198281]
[1644661463529,0.43547614,2930.7,2930.6,0.68258281]
[1644661464332,0.43547614,2930.7,2930.6,1.69233948]
[1644661464932,0.43547614,2930.7,2930.6,1.52173948]
[1644661466379,0.43547614,2930.7,2930.6,0.51198281]
[1644661466581,0.43547614,2930.7,2930.6,1.52243615]
[1644661466775,0.43547614,2930.7,2930.6,1.52239021]
[1644661466975,0.43547614,2930.7,2930.6,1.52209062]
[1644661467178,0.43547614,2930.7,2930.6,1.52209515]
[1644661467376,0.43547614,2930.7,2930.6,0.51198281]
[1644661467577,0.43547614,2930.7,2930.6,1.52232426]
[1644661467778,0.43547614,2930.7,2930.6,0.51198281]
[1644661467978,0.43547614,2930.7,2930.6,1.52233714]
[1644661468176,0.43547614,2930.7,2930.6,0.51198281]
[1644661468377,0.43547614,2930.7,2930.6,1.52233954]
[1644661468576,0.43547614,2930.7,2930.6,1.52233956]
[1644661468828,0.43547614,2930.7,2930.6,1.52694016]
[1644661469034,0.43547614,2930.7,2930.6,0.51198281]
[1644661469241,0.43547614,2930.7,2930.6,4.97930135]
[1644661469533,0.43547614,2930.7,2930.6,1.52694232]
[1644661469734,0.43547614,2930.7,2930.6,0.51198281]
[1644661469933,0.43547614,2930.7,2930.6,1.52682152]
[1644661470135,0.43547614,2930.7,2930.6,0.51198281]
[1644661470334,0.43547614,2930.7,2930.6,1.52682566]
[1644661470533,0.43547614,2930.7,2930.6,0.51198281]
[1644661470736,0.43547614,2930.7,2930.6,1.5270582]
[1644661470933,0.43547614,2930.7,2930.6,0.51198281]
[1644661471134,0.43420369,2930.7,2930.6,1.52705699]
[1644661471334,0.43420369,2930.7,2930.4,4.31607552]
[1644661471637,0.01378152,2930.8,2930.5,0.491]
[1644661471940,0.01278152,2930.8,2930.5,0.491]
[1644661472133,0.01278152,2930.8,2930.6,0.63292572]
[1644661472334,0.64881714,2931.0,2930.6,1.12392572]
[1644661472573,0.00897636,2930.8,2930.6,1.12392572]
[1644661473174,0.01278152,2930.8,2930.6,1.12392572]
[1644661473374,0.00897636,2930.8,2930.6,1.12392572]
[1644661473574,0.00380516,2930.9,2930.6,1.12392572]
[1644661473773,0.0089763,2930.8,2930.6,1.12392572]
[1644661474380,0.01278146,2930.8,2930.6,1.12392572]
[1644661474583,0.0089763,2930.8,2930.6,1.12392572]
[1644661474779,0.00380516,2930.9,2930.6,1.12392572]
[1644661474979,0.0089763,2930.8,2930.6,1.12392572]
[1644661475880,0.00380516,2930.9,2930.6,1.12392572]
[1644661476080,0.0089763,2930.8,2930.6,1.12392572]
[1644661477135,0.00380516,2930.9,2930.6,1.12392572]
[1644661477329,0.0089763,2930.8,2930.6,1.12392572]
[1644661478330,0.00380516,2930.9,2930.6,1.12392572]
[1644661478531,0.0089763,2930.8,2930.6,1.12392572]
[1644661479430,0.00380516,2930.9,2930.6,1.12392572]
[1644661479836,0.0089763,2930.8,2930.6,1.12392572]
[1644661480273,0.0089763,2930.8,2930.7,0.01967062]
[1644661480674,0.00380516,2930.9,2930.7,0.01967062]
[1644661480875,0.0127814,2930.9,2930.7,0.01967062]
[1644661481973,0.00380516,2930.9,2930.7,0.01967062]
[1644661482174,0.01278135,2930.9,2930.7,0.01967062]
[1644661483074,0.00380516,2930.9,2930.7,0.01967062]
[1644661483276,0.01278135,2930.9,2930.7,0.01967062]
[1644661483481,0.00897619,2930.9,2930.7,0.01967062]
[1644661484127,0.01278135,2930.9,2930.7,0.01967062]
[1644661484328,0.00380516,2930.9,2930.7,0.01967062]
[1644661484529,0.00897619,2930.9,2930.7,0.01967062]
[1644661485527,0.00380516,2931.0,2930.7,0.01967062]
[1644661485727,0.00897619,2930.9,2930.7,0.01967062]
[1644661486731,0.00380516,2931.0,2930.7,0.01967062]
[1644661486930,0.00897619,2930.9,2930.7,0.01967062]
[1644661487978,0.00380516,2931.0,2930.7,0.01967062]
[1644661488178,0.00897619,2930.9,2930.7,0.01967062]
[1644661489185,0.00380516,2931.0,2930.7,0.01967062]
[1644661489382,0.00897619,2930.9,2930.7,0.01967062]
[1644661490389,0.00380516,2931.0,2930.7,0.01967062]
[1644661490582,0.00897619,2930.9,2930.7,0.01967062]
[1644661491182,0.39242864,2930.8,2930.7,0.01967062]
[1644661491431,0.39242864,2930.8,2930.7,1.07461265]
[1644661491629,0.39242864,2930.9,2930.7,0.01967062]
[1644661491833,0.40140488,2930.9,2930.7,0.01967062]
[1644661492030,0.39242864,2930.8,2930.7,0.01967062]
[1644661492431,0.39242864,2930.8,2930.7,1.07459322]
[1644661492632,0.39242864,2930.8,2930.7,0.01967062]
[1644661492830,0.39242864,2930.8,2930.7,1.07486302]
[1644661493041,0.39242864,2930.8,2930.7,0.01967062]
[1644661493232,0.39242864,2930.8,2930.7,1.07482146]
[1644661493432,0.39242864,2930.8,2930.7,1.07482157]
[1644661493633,0.39242864,2930.8,2930.7,0.01967062]
[1644661494037,0.00380516,2930.9,2930.7,0.01967062]
[1644661494038,0.3962338,2930.9,2930.7,0.01967062]
[1644661494238,0.40521004,2930.9,2930.8,1.05514372]
[1644661494437,0.40521004,2930.9,2930.7,0.01967062]
[1644661494637,0.0127814,2930.9,2930.7,0.01967062]
[1644661494838,0.0127814,2930.9,2930.8,1.05559779]
[1644661495087,0.39269672,2930.9,2930.8,1.05559727]
[1644661495282,0.39289465,2930.9,2930.7,0.19031062]
[1644661495482,0.39289465,2930.9,2930.7,0.0869607]
[1644661495483,0.39569981,2930.9,2930.7,0.0869607]
[1644661496483,0.404676,2930.9,2930.7,0.0869607]
[1644661496683,0.01278135,2930.9,2930.7,0.0869607]
[1644661496987,0.64981714,2931.3,2930.8,0.491]
[1644661497191,0.00380834,2931.0,2930.8,0.791]
[1644661497384,0.6857165,2931.4,2930.8,0.791]
[1644661497385,0.00380834,2931.2,2930.8,1.091]
[1644661497586,0.00380834,2931.3,2930.8,1.091]
[1644661498291,0.00380834,2931.3,2930.8,1.94396]
[1644661498829,0.00380834,2931.3,2930.9,0.1705]
[1644661499035,0.00380834,2931.3,2931.0,0.5763]
[1644661499336,0.65262548,2931.5,2931.2,0.852971]
[1644661499834,0.00380834,2931.5,2931.2,0.852971]
[1644661500134,0.64981714,2931.7,2931.4,0.88849505]
[1644661500135,0.65262548,2931.7,2931.4,0.88849505]
[1644661500333,0.65262548,2931.7,2931.4,0.97379505]
[1644661501335,0.6616008,2931.7,2931.4,0.97379505]
[1644661502034,0.6616008,2931.7,2931.4,0.0853]
[1644661502235,0.64881714,2931.6,2931.4,0.0853]
[1644661502783,0.64881714,2931.5,2931.4,0.0853]
[1644661503081,0.64881714,2931.6,2931.4,0.0853]
[1644661503885,0.65779252,2931.6,2931.4,0.0853]
[1644661504687,0.64881714,2931.6,2931.4,0.0853]
[1644661504888,0.65779252,2931.6,2931.4,0.0853]
[1644661505892,0.64881714,2931.6,2931.4,0.0853]
[1644661506205,0.64881714,2931.6,2930.8,0.1705]
[1644661506206,0.00150784,2931.4,2930.8,0.1705]
[1644661506439,0.65002285,2931.1,2930.8,0.1705]
[1644661506635,0.65383119,2931.0,2930.5,0.25]
[1644661506834,0.71557161,2930.8,2930.3,0.17065]
[1644661507133,0.00480834,2930.9,2930.3,0.17065]
[1644661507334,0.00380834,2930.9,2930.3,0.17065]
[1644661507533,0.00380834,2930.9,2930.1,6.19527808]
[1644661507736,0.65383119,2930.9,2930.1,6.19527808]
[1644661507934,0.65383119,2930.9,2930.1,5.3395]
[1644661508136,4.15002285,2930.8,2929.9,5.169]
[1644661508336,0.001,2930.7,2929.9,5.169]
[1644661508635,1.95102285,2930.7,2929.9,5.169]
[1644661508841,2.99856061,2930.6,2929.9,5.169]
[1644661509038,0.64328641,2930.5,2929.9,5.85329547]
[1644661509237,0.64328641,2930.5,2929.9,5.169]
[1644661510195,0.64328641,2930.5,2929.7,0.25897901]
[1644661510196,3.2234051,2930.4,2929.7,0.25897901]
[1644661510389,0.79940233,2930.0,2929.7,0.00897901]
[1644661510888,0.79940233,2930.0,2929.7,0.00897834]
[1644661511497,3.5,2929.9,2929.7,0.00897834]
[1644661511688,0.001,2929.8,2929.7,0.00897834]
[1644661511886,1.44942518,2930.0,2929.4,0.1706]
[1644661511887,0.001,2929.9,2929.4,0.1706]
[1644661512289,0.001,2929.9,2929.7,0.00897824]
[1644661512889,1.001,2929.9,2929.7,0.00897824]
[1644661513088,3.60277139,2929.8,2929.4,0.1706]
[1644661513291,3.60277139,2929.8,2929.0,0.1706]